bitfinex/quotes_SOLUSD_20240809
["timestamp","ask_amount","ask_price","bid_price","bid_amount"]
[1723218021656,43.8716,152.4,152.35,6.5637]
[1723218021961,6.5613,152.41,152.36,6.5633]
[1723218022160,6.5609,152.42,152.38,16.48269]
[1723218022375,6.5614,152.41,152.38,16.3572]
[1723218022579,6.5632,152.37,152.34,16.48269]
[1723218022764,43.8734,152.36,152.35,0.12549]
[1723218022967,6.5638,152.35,152.34,16.3572]
[1723218023169,16.4036,152.41,152.34,16.3572]
[1723218023170,43.8725,152.38,152.34,16.3572]
[1723218023672,6.5629,152.37,152.34,16.3572]
[1723218023855,6.5628,152.38,152.34,16.3572]
[1723218024278,6.5628,152.38,152.35,0.12549]
[1723218024483,6.5628,152.38,152.35,0.25098]
[1723218025079,6.5629,152.37,152.35,0.25098]
[1723218025382,6.5626,152.38,152.35,0.25098]
[1723218025681,6.5629,152.37,152.35,0.25098]
[1723218026268,6.5626,152.38,152.35,0.25098]
[1723218026465,6.5634,152.36,152.35,0.25098]
[1723218026856,6.5634,152.36,152.35,0.12549]
[1723218027161,6.5634,152.36,152.31,6.6098]
[1723218027162,6.5651,152.32,152.31,6.6098]
[1723218027477,6.5659,152.3,152.27,6.655]
[1723218027675,29.02,152.28,152.27,6.655]
[1723218028389,6.5656,152.31,152.27,6.655]
[1723218028591,29.02,152.29,152.27,6.655]
[1723218029285,23.27480589,152.35,152.27,6.655]
[1723218029286,29.02,152.28,152.27,6.655]
[1723218029492,29.02,152.28,152.25,16.1588]
[1723218029790,37.32,152.28,152.25,16.1588]
[1723218030982,6.5673,152.27,152.23,6.5285]
[1723218031215,37.32,152.28,152.23,6.5285]
[1723218031491,1.64203833,152.27,152.23,6.5285]
[1723218031672,37.32,152.26,152.23,6.5285]
[1723218031872,43.8879,152.26,152.23,6.5285]
[1723218032068,37.32,152.26,152.21,15.5326]
[1723218032483,6.5664,152.29,152.25,22.9883]
[1723218032484,37.32,152.29,152.25,22.9883]
[1723218033277,37.32,152.29,152.25,16.4203]
[1723218033778,6.0775,152.33,152.21,15.5326]
[1723218033779,37.32,152.27,152.22,16.4233]
[1723218034094,43.8864,152.29,152.24,6.5685]
[1723218034275,43.8864,152.29,152.25,0.25098]
[1723218034783,6.86470589,152.35,152.28,0.12549]
[1723218035098,44.18470589,152.35,152.31,0.12549]
[1723218035286,6.3662,152.42,152.32,6.5647]
[1723218035287,43.8825,152.39,152.32,6.5647]
[1723218035484,37.32,152.39,152.33,0.37647]
[1723218035686,37.32,152.37,152.33,0.25098]
[1723218035878,37.32,152.37,152.33,0.12549]
[1723218036297,6.5639,152.35,152.32,0.25098]
[1723218036472,6.5639,152.35,152.29,0.12549]
[1723218036473,6.5649,152.33,152.29,0.12549]
[1723218036669,6.5643,152.34,152.29,0.50196]
[1723218037003,37.32,152.33,152.29,0.50196]
[1723218037180,37.32,152.33,152.29,0.37647]
[1723218037386,37.32,152.33,152.29,0.25098]
[1723218037596,1.64147761,152.32,152.28,0.25098]
[1723218037783,6.5651,152.32,152.27,15.4508]
[1723218037989,6.5651,152.32,152.27,22.018]
[1723218038317,43.8847,152.33,152.28,0.12549]
[1723218038611,37.32,152.31,152.27,15.4508]
[1723218038819,6.5665,152.29,152.27,15.4508]
[1723218039112,37.32,152.31,152.27,15.4508]
[1723218039287,37.32,152.31,152.26,6.3688]
[1723218039483,37.32,152.29,152.26,6.3688]
[1723218039691,37.32,152.29,152.24,16.4213]
[1723218039692,37.32,152.27,152.23,16.3586]
[1723218039899,1.6420503,152.26,152.22,6.6273]
[1723218040284,37.32,152.27,152.22,6.6273]
[1723218040511,37.32,152.29,152.22,6.6273]
[1723218040809,37.32,152.29,152.25,6.5681]
[1723218040998,37.32,152.29,152.23,16.4215]
[1723218041193,24.16538433,152.33,152.22,13.1963]
[1723218041194,43.8876,152.27,152.22,6.6273]
[1723218042001,37.32,152.23,152.19,32.7383]
[1723218042184,37.32,152.23,152.19,39.3086]
[1723218042388,37.32,152.23,152.2,6.57]
[1723218042612,37.32,152.23,152.19,39.3089]
[1723218043207,37.32,152.23,152.19,32.7383]
[1723218043698,37.32,152.23,152.18,6.2994]
[1723218044008,16.4182,152.27,152.15,31.8209]
[1723218044009,43.8899,152.21,152.15,31.8209]
[1723218044183,37.32,152.21,152.15,31.8209]
[1723218044382,37.32,152.24,152.16,1.31411698]
[1723218044681,43.8887,152.24,152.19,6.5707]
[1723218044881,20.0,152.26,152.2,17.73900507]
[1723218044882,57.32,152.26,152.2,17.73900507]
[1723218045088,37.32,152.26,152.21,1.31375854]
[1723218045324,37.32,152.26,152.21,6.5694]
[1723218045628,43.8878,152.26,152.21,6.5694]
[1723218045917,43.8878,152.26,152.2,16.55049]
[1723218046126,43.8878,152.26,152.21,1.5647896]
[1723218046289,43.8878,152.26,152.21,0.25098]
[1723218046290,37.32,152.26,152.21,0.25098]
[1723218046492,43.8886,152.24,152.21,0.12549]
[1723218046687,6.569,152.23,152.2,0.25098]
[1723218046922,43.8894,152.22,152.19,0.12549]
[1723218047116,43.8894,152.22,152.18,0.37647]
[1723218047490,43.8894,152.22,152.18,0.25098]
[1723218047698,37.32,152.22,152.18,0.25098]
[1723218048002,43.8897,152.22,152.18,0.25098]
[1723218048211,43.8897,152.22,152.18,0.12549]
[1723218048511,43.8897,152.22,152.17,0.37647]
[1723218048822,37.32,152.22,152.17,6.94787]
[1723218049034,37.32,152.22,152.18,0.12549]
[1723218049537,37.32,152.2,152.14,6.5304]
[1723218049991,43.8904,152.2,152.14,6.5304]
[1723218050192,37.32,152.18,152.14,13.1032]
[1723218051434,37.32,152.18,152.14,13.1031]
[1723218051604,43.8912,152.18,152.14,6.5304]
[1723218051922,43.8911,152.18,152.14,6.5304]
[1723218052109,43.8914,152.18,152.14,6.5304]
[1723218052426,37.32,152.18,152.14,6.5304]
[1723218052629,37.32,152.18,152.14,13.1032]
[1723218053828,37.32,152.16,152.14,6.5304]
[1723218054014,37.32,152.18,152.15,1.31443594]
[1723218054219,37.32,152.18,152.14,6.5304]
[1723218054530,37.32,152.18,152.15,0.12549]
[1723218055326,37.32,152.18,152.15,6.69779]
[1723218055524,37.32,152.18,152.16,0.25098]
[1723218055720,37.32,152.18,152.16,0.12549]
[1723218056036,6.85742532,152.23,152.18,0.12549]
[1723218056201,37.32,152.22,152.18,0.12549]
[1723218056415,6.85742532,152.23,152.18,16.55239]
[1723218056625,43.8887,152.24,152.2,0.12549]
[1723218056831,43.8887,152.24,152.2,0.25098]
[1723218057130,37.32,152.22,152.19,0.25098]
[1723218057345,37.32,152.22,152.19,0.12549]
[1723218057504,37.32,152.22,152.19,0.25098]
[1723218057704,43.8894,152.22,152.19,0.25098]
[1723218058231,37.32,152.22,152.19,0.12549]
[1723218058531,43.8888,152.24,152.19,8.00998793]
[1723218058706,37.32,152.24,152.2,0.25098]
[1723218058909,46.54356376,152.28,152.22,6.637]
[1723218059207,6.5682,152.25,152.22,6.637]
[1723218059419,37.32,152.24,152.22,6.637]
[1723218059612,6.5695,152.22,152.2,16.14259]
[1723218059812,6.5698,152.21,152.2,16.0171]
[1723218060110,37.32,152.22,152.2,16.0171]
[1723218060524,6.5713,152.18,152.16,15.0853]
[1723218060828,37.32,152.22,152.14,6.216]
[1723218060829,43.8916,152.17,152.14,6.216]
[1723218061418,37.32,152.24,152.15,1.31441696]
[1723218061419,37.32,152.19,152.15,1.31441696]
[1723218061807,37.32,152.21,152.15,1.31441696]
[1723218062009,37.32,152.21,152.17,6.5715]
[1723218062209,37.32,152.21,152.18,1.43951154]
[1723218062407,25.17667569,152.28,152.18,1.43951154]
[1723218062408,16.4173,152.28,152.19,16.67768]
[1723218062643,6.5677,152.26,152.21,6.69529]
[1723218062844,50.74493706,152.27,152.22,8.1339316]
[1723218063157,43.8864,152.29,152.24,6.5685]
[1723218063331,6.86305641,152.27,152.25,1.43892786]
[1723218063514,6.86305641,152.27,152.25,0.12549]
[1723218063709,1.64202579,152.26,152.19,6.18129]
[1723218063927,37.32,152.21,152.19,6.18129]
[1723218064237,6.5703,152.2,152.19,6.0558]
[1723218064417,37.32,152.21,152.19,6.0558]
[1723218065235,43.89,152.21,152.17,16.0175]
[1723218065628,6.5705,152.2,152.17,16.0175]
[1723218065933,37.32,152.19,152.17,16.0175]
[1723218066143,37.32,152.21,152.17,16.0175]
[1723218066649,6.5706,152.2,152.17,16.0175]
[1723218067009,6.5709,152.19,152.17,16.0175]
[1723218067232,6.5716,152.17,152.15,6.2521]
[1723218067535,37.32,152.17,152.13,16.58]
[1723218067709,18.99837606,152.26,152.13,34.32687455]
[1723218067913,37.32,152.19,152.13,34.32687455]
[1723218068134,37.32,152.17,152.13,39.5857]
[1723218068336,37.32,152.17,152.13,33.0125]
[1723218068538,43.8916,152.17,152.13,33.0125]
[1723218068834,37.32,152.15,152.13,16.58]
[1723218069037,6.5728,152.14,152.13,16.58]
[1723218069236,37.32,152.14,152.11,6.1633]
[1723218069442,37.32,152.14,152.12,1.31456038]
[1723218069657,37.32,152.16,152.12,1.31456038]
[1723218069959,37.32,152.16,152.12,17.74796038]
[1723218070248,37.32,152.19,152.14,16.4315]
[1723218070413,37.32,152.19,152.16,15.0661]
[1723218070615,43.8902,152.21,152.17,0.37647]
[1723218070834,37.32,152.19,152.18,0.12549]
[1723218071043,37.32,152.19,152.17,45.37647]
[1723218071253,37.32,152.19,152.17,6.94797]
[1723218071433,37.32,152.19,152.17,0.37647]
[1723218073839,37.32,152.19,152.17,0.25098]
[1723218074349,37.32,152.21,152.17,1.56506588]
[1723218074650,37.32,152.22,152.18,0.12549]
[1723218074854,37.32,152.22,152.18,1.43942336]
[1723218075043,37.32,152.22,152.19,0.25098]
[1723218075426,37.32,152.22,152.2,0.12549]
[1723218075745,37.32,152.22,152.19,0.25098]
[1723218075746,29.05,152.21,152.19,0.25098]
[1723218075933,6.86537985,152.28,152.2,0.25098]
[1723218076256,48.8964,152.33,152.22,0.12549]
[1723218076257,29.05,152.26,152.22,0.12549]
[1723218076542,29.05,152.24,152.22,45.25098]
[1723218076754,29.05,152.32,152.23,0.25098]
[1723218077044,29.05,152.26,152.24,0.12549]
[1723218077358,29.05,152.28,152.24,17.51316192]
[1723218077644,29.05,152.27,152.26,0.12549]
[1723218077822,29.05,152.27,152.26,0.25098]
[1723218078143,29.05,152.27,152.26,0.50196]
[1723218078368,29.05,152.32,152.28,0.12549]
[1723218078369,6.5651,152.32,152.28,0.12549]
[1723218078644,29.05,152.32,152.28,1.68949086]
[1723218078823,35.615,152.33,152.3,0.12549]
[1723218079025,29.05,152.31,152.28,0.12549]
[1723218079245,6.5668,152.28,152.27,6.0252]
[1723218079427,35.6168,152.28,152.27,0.12549]
[1723218079633,32.8157,152.37,152.25,0.12549]
[1723218079824,32.8157,152.37,152.25,45.50196]
[1723218079825,37.31,152.29,152.25,45.50196]
[1723218080025,37.31,152.27,152.25,0.50196]
[1723218080323,6.5677,152.26,152.25,0.25098]
[1723218080531,6.5677,152.26,152.25,0.12549]
[1723218081129,43.8773,152.27,152.25,0.12549]
[1723218081315,37.31,152.27,152.24,15.9487]
[1723218081541,43.8776,152.27,152.24,15.9487]
[1723218081845,37.31,152.27,152.24,15.9487]
[1723218082046,37.31,152.27,152.25,1.31351866]
[1723218082248,37.31,152.29,152.25,52.88131866]
[1723218082631,37.31,152.29,152.26,0.50196]
[1723218082955,37.31,152.3,152.26,1.81520142]
[1723218083633,37.31,152.32,152.28,6.69229]
[1723218083833,6.565,152.33,152.3,0.12549]
[1723218084352,6.5642,152.35,152.31,6.0725]
[1723218084559,6.5642,152.35,152.32,0.50196]
[1723218085955,37.31,152.34,152.32,0.37647]
[1723218086158,37.31,152.34,152.27,6.4955]
[1723218086360,6.5663,152.3,152.27,6.4955]
[1723218086858,43.8751,152.32,152.27,13.0626]
[1723218087353,43.8751,152.32,152.28,0.12549]
[1723218087532,43.8751,152.32,152.28,45.50196]
[1723218088349,6.5655,152.31,152.28,45.50196]
[1723218088645,43.8752,152.32,152.28,45.50196]
[1723218089242,6.5655,152.31,152.28,45.50196]
[1723218089443,43.8752,152.32,152.28,45.50196]
[1723218089657,6.5656,152.31,152.28,0.50196]
[1723218089863,43.8751,152.32,152.28,0.50196]
[1723218090153,22.9703,152.4,152.33,16.5032]
[1723218090361,43.8731,152.37,152.34,1.81458917]
[1723218090546,37.31,152.37,152.34,1.81458917]
[1723218090863,43.8729,152.37,152.34,1.81458917]
[1723218091154,6.5625,152.38,152.34,1.81458917]
[1723218091961,6.563,152.37,152.34,1.81458917]
[1723218092131,6.5626,152.38,152.34,0.50196]
[1723218092331,50.26543604,152.39,152.34,63.22489192]
[1723218092655,47.59741081,152.39,152.34,0.50196]
[1723218092847,6.5629,152.37,152.34,0.50196]
[1723218093040,47.59741081,152.39,152.36,0.12549]
[1723218093245,10.28741081,152.39,152.36,1.8143585]
[1723218093556,37.3902606,152.41,152.37,6.5628]
[1723218093728,37.3902606,152.41,152.38,0.50196]
[1723218093933,6.5616,152.4,152.38,0.50196]
[1723218094854,43.9515606,152.41,152.38,0.50196]
[1723218096055,0.0802606,152.41,152.38,0.50196]
[1723218096241,0.0802606,152.41,152.38,52.06436]
[1723218096436,0.0802606,152.41,152.4,0.12549]
[1723218096761,0.0802606,152.41,152.4,8.37548932]
[1723218096965,0.0802606,152.41,152.4,53.37548932]
[1723218097256,16.3915,152.52,152.42,0.12549]
[1723218097452,37.31,152.51,152.46,0.12549]
[1723218097660,37.31,152.47,152.42,0.12549]
[1723218097850,6.56,152.44,152.42,0.25098]
[1723218098050,37.31,152.45,152.4,22.09439]
[1723218098051,37.31,152.45,152.4,21.9689]
[1723218098241,37.31,152.41,152.4,21.9689]
[1723218098443,37.31,152.41,152.4,6.4128]
[1723218099545,37.31,152.41,152.4,6.91476]
[1723218099930,37.31,152.45,152.41,0.12549]
[1723218100134,37.31,152.47,152.41,61.90446]
[1723218100438,43.8687,152.47,152.43,6.5602]
[1723218100655,43.8687,152.47,152.44,0.25098]
[1723218100864,6.5591,152.46,152.44,0.25098]
[1723218101273,6.5595,152.45,152.44,0.25098]
[1723218101554,6.5592,152.46,152.44,0.25098]
[1723218101763,6.5595,152.45,152.44,0.25098]
[1723218101957,46.52719323,152.47,152.44,0.25098]
[1723218102159,39.96819323,152.47,152.43,0.25098]
[1723218102448,37.31,152.49,152.46,6.68449]
[1723218102656,6.5568,152.52,152.48,0.12549]
[1723218102857,6.5568,152.52,152.48,1.43681588]
[1723218103042,6.557,152.51,152.48,1.43681588]
[1723218103245,6.557,152.51,152.49,0.37647]
[1723218103549,37.31,152.53,152.5,0.12549]
[1723218103751,6.5555,152.55,152.5,0.12549]
[1723218103968,0.8166804,152.57,152.53,0.12549]
[1723218104139,38.1266804,152.57,152.53,0.25098]
[1723218104340,38.1266804,152.57,152.54,0.12549]
[1723218104740,38.1266804,152.57,152.54,0.50196]
[1723218104941,0.8166804,152.57,152.54,0.50196]
[1723218105172,7.3710804,152.57,152.54,0.50196]
[1723218105771,38.1266804,152.57,152.54,0.50196]
[1723218105948,0.8166804,152.57,152.54,1.81281227]
[1723218106146,7.3710804,152.57,152.54,0.50196]
[1723218106349,0.8166804,152.57,152.54,1.81281194]
[1723218106570,0.8166804,152.57,152.54,0.50196]
[1723218106774,0.8166804,152.57,152.56,0.12549]
[1723218106950,0.8166804,152.57,152.56,0.50196]
[1723218107352,0.8166804,152.57,152.56,0.25098]
[1723218108166,0.8166804,152.57,152.56,0.37647]
[1723218108344,0.8166804,152.57,152.56,0.50196]
[1723218109044,0.8166804,152.57,152.56,0.37647]
[1723218109252,0.8166804,152.57,152.56,0.25098]
[1723218109562,0.8166804,152.57,152.56,0.12549]
[1723218110171,0.8166804,152.57,152.55,0.50196]
[1723218110645,38.1266804,152.57,152.55,0.50196]
[1723218110848,38.1266804,152.57,152.48,16.3955]
[1723218111048,37.31,152.54,152.48,16.3955]
[1723218111248,37.31,152.54,152.5,6.557]
[1723218111866,37.31,152.54,152.48,16.3955]
[1723218112171,0.8166804,152.57,152.47,6.1844]
[1723218112172,37.31,152.5,152.47,6.1844]
[1723218112759,6.5579,152.49,152.47,6.1844]
[1723218112953,37.31,152.48,152.45,32.6198]
[1723218113366,37.31,152.48,152.45,16.2214]
[1723218113569,37.31,152.46,152.43,6.0771]
[1723218114555,37.31,152.46,152.43,12.6374]
[1723218115283,37.31,152.46,152.44,6.5599]
[1723218115465,37.31,152.48,152.45,0.25098]
[1723218115779,37.31,152.52,152.46,0.25098]
[1723218115960,37.31,152.52,152.48,0.12549]
[1723218116167,37.31,152.52,152.48,0.25098]
[1723218116355,37.31,152.52,152.5,0.12549]
[1723218116682,6.5569,152.51,152.5,0.12549]
[1723218116883,6.5578,152.49,152.43,22.4777]
[1723218117177,37.31,152.5,152.44,1.68804243]
[1723218117350,37.31,152.5,152.46,6.5588]
[1723218117550,37.31,152.5,152.47,0.37647]
[1723218118186,37.31,152.5,152.48,0.12549]
[1723218118476,6.5578,152.49,152.47,0.37647]
[1723218118682,16.3897,152.54,152.43,6.0771]
[1723218118683,37.31,152.48,152.43,6.0771]
[1723218118976,43.8699,152.44,152.43,6.0771]
[1723218119271,37.31,152.44,152.39,22.4426]
[1723218119652,37.31,152.44,152.4,22.0879]
[1723218119858,37.31,152.46,152.41,16.4023]
[1723218120059,37.31,152.46,152.42,6.5604]
[1723218120463,43.8683,152.48,152.41,16.4023]
[1723218120675,37.31,152.46,152.41,22.9631]
[1723218120867,37.31,152.44,152.4,15.5263]
[1723218121061,43.8699,152.44,152.4,15.5263]
[1723218121286,37.31,152.44,152.4,22.0876]
[1723218121883,37.31,152.44,152.41,6.5612]
[1723218122085,37.31,152.46,152.4,31.9299]
[1723218122280,37.31,152.48,152.41,0.12549]
[1723218122584,37.31,152.48,152.45,6.5594]
[1723218122761,37.31,152.48,152.46,0.37647]
[1723218122961,37.31,152.48,152.47,0.12549]
[1723218123968,37.31,152.48,152.43,0.12549]
[1723218124185,6.5588,152.47,152.43,7.06216]
[1723218124489,43.8683,152.48,152.43,7.06216]
[1723218124663,37.31,152.48,152.45,0.12549]
[1723218124987,37.31,152.5,152.45,1.81356984]
[1723218125185,37.31,152.5,152.45,0.50196]
[1723218125394,37.31,152.5,152.47,0.12549]
[1723218125685,37.31,152.5,152.47,8.37204374]
[1723218125885,37.31,152.52,152.47,0.50196]
[1723218126077,16.3885,152.55,152.47,0.50196]
[1723218126078,37.31,152.5,152.47,0.50196]
[1723218126268,43.8682,152.48,152.47,0.25098]
[1723218126482,43.8682,152.48,152.39,6.0375]
[1723218126483,37.31,152.48,152.39,6.0375]
[1723218126669,37.31,152.44,152.39,6.0375]
[1723218126969,43.87,152.44,152.39,12.5992]
[1723218127168,6.5604,152.43,152.39,6.0375]
[1723218127379,37.31,152.44,152.4,6.5616]
[1723218127380,43.87,152.44,152.4,6.5616]
[1723218127691,53.7062,152.48,152.37,16.407]
[1723218127692,6.5616,152.41,152.37,16.407]
[1723218127886,37.31,152.42,152.37,22.9699]
[1723218128079,6.5613,152.41,152.37,22.9699]
[1723218128293,43.8718,152.4,152.36,15.8726]
[1723218128468,6.5661,152.48,152.37,16.4067]
[1723218128667,37.31,152.43,152.4,6.5615]
[1723218128993,37.31,152.43,152.38,1.31209488]
[1723218129196,43.8761,152.48,152.39,16.4043]
[1723218129197,37.31,152.45,152.39,16.4043]
[1723218129376,37.31,152.45,152.41,6.5611]
[1723218129570,37.31,152.45,152.42,1.31197283]
[1723218129769,37.31,152.47,152.44,0.12549]
[1723218129977,37.31,152.49,152.45,6.68499]
[1723218130279,37.31,152.47,152.43,0.37647]
[1723218130483,6.5612,152.42,152.37,6.5626]
[1723218130677,43.8713,152.41,152.36,38.8433]
[1723218132065,37.31,152.39,152.36,16.4077]
[1723218132281,6.5617,152.4,152.32,6.5647]
[1723218132282,37.31,152.37,152.32,6.5647]
[1723218132480,37.31,152.35,152.31,16.5895]
[1723218132681,43.8739,152.35,152.3,29.4511]
[1723218132896,37.31,152.35,152.31,6.5654]
[1723218133102,43.8738,152.35,152.3,22.9805]
[1723218133390,37.31,152.33,152.29,6.5663]
[1723218136083,37.31,152.35,152.3,1.3130206]
[1723218136288,37.31,152.35,152.34,6.5642]
[1723218136486,37.31,152.37,152.34,6.5642]
[1723218136672,37.31,152.37,152.35,0.25098]
[1723218136882,37.31,152.37,152.34,6.5642]
[1723218137079,43.8721,152.39,152.35,6.94027]
[1723218137279,37.31,152.37,152.35,0.37647]
[1723218137791,43.8712,152.41,152.36,0.12549]
[1723218137984,37.31,152.39,152.35,0.37647]
[1723218138178,37.31,152.37,152.35,0.37647]
[1723218138381,37.31,152.37,152.36,0.12549]
[1723218138605,43.8721,152.39,152.36,0.12549]
[1723218138787,37.31,152.39,152.36,0.12549]
[1723218139372,43.8721,152.39,152.36,0.12549]
[1723218139575,43.8721,152.39,152.35,0.37647]
[1723218139772,37.31,152.39,152.36,0.12549]
[1723218139996,37.31,152.39,152.36,6.68869]
[1723218140184,37.31,152.39,152.37,0.37647]
[1723218140380,37.31,152.39,152.34,16.4099]
[1723218140580,37.31,152.35,152.23,6.3089]
[1723218140778,37.31,152.31,152.25,16.4199]
[1723218140979,37.31,152.29,152.25,16.4199]
[1723218141474,37.31,152.29,152.26,6.5676]
[1723218142577,37.31,152.29,152.27,7.88028986]
[1723218142777,37.31,152.31,152.27,6.567]
[1723218142978,37.31,152.31,152.28,0.12549]
[1723218143201,37.31,152.31,152.28,0.50196]
[1723218143598,37.31,152.31,152.28,7.06876]
[1723218143798,43.8756,152.31,152.28,0.50196]
[1723218143999,37.31,152.29,152.28,0.50196]
[1723218144400,19.07310059,152.37,152.28,0.50196]
[1723218144597,19.07310059,152.37,152.25,16.4199]
[1723218144598,43.8763,152.3,152.25,22.9879]
[1723218144788,37.31,152.28,152.25,22.9879]
[1723218145302,37.31,152.28,152.25,16.4199]
[1723218145705,37.31,152.28,152.18,32.8547]
[1723218145706,37.31,152.26,152.22,32.9526]
[1723218145890,37.31,152.26,152.23,6.5686]
[1723218146201,37.31,152.26,152.22,32.9526]
[1723218146412,37.31,152.24,152.22,16.5292]
[1723218146603,37.31,152.26,152.22,16.5292]
[1723218146803,37.31,152.26,152.23,7.88242406]
[1723218146988,37.31,152.26,152.22,23.0985]
[1723218147377,43.8777,152.26,152.22,16.5292]
[1723218147784,37.31,152.26,152.22,23.0985]
[1723218148012,43.8777,152.26,152.22,23.0985]
[1723218148188,37.31,152.26,152.22,23.0985]
[1723218148834,37.31,152.26,152.23,0.50196]
[1723218148983,37.31,152.24,152.23,0.37647]
[1723218149316,6.569,152.23,152.19,6.0338]
[1723218149515,37.31,152.24,152.17,15.1055]
[1723218149516,37.31,152.21,152.17,15.1055]
[1723218149701,43.8799,152.21,152.17,15.1055]
[1723218149901,37.31,152.19,152.15,22.8288]
[1723218150117,37.31,152.19,152.16,6.5716]
[1723218150328,6.568,152.26,152.18,16.4278]
[1723218150523,40.86101202,152.3,152.21,6.5697]
[1723218150524,37.31,152.25,152.21,6.5697]
[1723218150721,43.8782,152.25,152.2,16.4247]
[1723218151353,37.31,152.21,152.2,0.12549]
[1723218152027,43.88,152.21,152.17,16.4288]
[1723218152224,37.31,152.19,152.17,16.4288]
[1723218152536,37.31,152.19,152.17,23.0]
[1723218152735,23.27146525,152.27,152.17,23.0]
[1723218152736,37.31,152.21,152.17,23.0]
[1723218152917,37.31,152.21,152.18,6.5711]
[1723218153736,37.31,152.21,152.19,0.25098]
[1723218154031,37.31,152.21,152.2,0.12549]
[1723218154653,6.85246525,152.27,152.21,0.12549]
[1723218154945,37.31,152.28,152.26,0.12549]
[1723218155115,37.31,152.28,152.26,0.50196]
[1723218155840,37.31,152.3,152.26,0.50196]
[1723218156016,37.31,152.3,152.26,1.81523563]
[1723218156216,37.31,152.32,152.26,45.50196]
[1723218156534,37.31,152.32,152.31,0.12549]
[1723218156736,37.31,152.38,152.34,6.5638]
[1723218157036,37.31,152.38,152.35,6.68929]
[1723218157247,37.31,152.4,152.36,1.68901917]
[1723218157417,37.31,152.4,152.37,0.12549]
[1723218157832,37.31,152.4,152.37,1.43789033]
[1723218158129,37.31,152.4,152.38,0.37647]
[1723218158330,37.31,152.4,152.38,0.12549]
[1723218158526,43.8717,152.4,152.37,0.12549]
[1723218158746,43.8717,152.4,152.37,0.25098]
[1723218159045,43.8716,152.4,152.37,0.25098]
[1723218159233,37.31,152.4,152.38,0.12549]
[1723218159542,43.8718,152.4,152.38,0.12549]
[1723218159748,45.54,152.43,152.38,0.12549]
[1723218160047,45.54,152.43,152.37,0.25098]
[1723218160642,45.54,152.43,152.38,0.12549]
[1723218160844,52.1004,152.43,152.38,0.25098]
[1723218161250,45.54,152.43,152.39,0.25098]
[1723218161439,6.5613,152.41,152.39,0.25098]
[1723218162051,6.5608,152.42,152.39,0.25098]
[1723218162651,6.5616,152.4,152.39,0.25098]
[1723218163227,6.5613,152.41,152.39,0.25098]
[1723218163553,8.20201801,152.4,152.34,22.9737]
[1723218163859,45.54,152.43,152.35,0.50196]
[1723218164046,45.54,152.43,152.35,45.50196]
[1723218164250,6.5599,152.44,152.39,6.562]
[1723218164442,6.5599,152.44,152.4,1.81409838]
[1723218164745,304.74,152.48,152.4,1.81409838]
[1723218164746,6.5603,152.43,152.4,0.50196]
[1723218165330,6.5621,152.39,152.34,6.5641]
[1723218165633,6.5621,152.39,152.33,22.5546]
[1723218165634,45.54,152.45,152.35,16.4087]
[1723218165954,6.5617,152.4,152.35,22.9723]